bitfinex-derivatives/quotes_BNBF0:USTF0_20250708
["timestamp","ask_amount","ask_price","bid_price","bid_amount"]
[1751983758410,1.697848,660.88,660.31,1.69870235]
[1751983758708,1.697848,660.88,660.3,1.69870235]
[1751983759309,1.697848,660.88,660.31,1.69870235]
[1751983759507,1.697848,660.89,660.3,1.69870235]
[1751983760413,1.697848,660.88,660.3,1.69870235]
[1751983761009,1.697848,660.89,660.29,3.19870235]
[1751983761911,1.697848,660.89,660.3,1.69870235]
[1751983762217,1.697848,660.88,660.3,1.69870235]
[1751983764214,1.697848,660.88,660.31,1.69870235]
[1751983764415,1.697848,660.88,660.3,1.69870235]
[1751983764615,1.697848,660.88,660.31,1.69870235]
[1751983765320,1.697848,660.88,660.3,1.69870235]
[1751983765615,1.697848,660.88,660.29,1.5]
[1751983765616,1.697848,660.87,660.31,1.69870235]
[1751983766016,1.697848,660.87,660.32,1.69870235]
[1751983769422,1.697848,660.86,660.33,1.69870235]
[1751983769624,1.697848,660.86,660.34,1.69870235]
[1751983770822,1.697848,660.85,660.35,1.69870235]
[1751983773121,1.697848,660.87,660.32,1.69870235]
[1751983774320,1.697848,660.88,660.31,1.69870235]
[1751983775224,1.697848,660.87,660.31,1.69870235]
[1751983775427,1.697848,660.88,660.31,1.69870235]
[1751983776228,1.697848,660.87,660.31,1.69870235]
[1751983776426,1.697848,660.88,660.31,1.69870235]
[1751983776726,1.697848,660.87,660.31,1.69870235]
[1751983777126,1.697848,660.87,660.32,1.69870235]
[1751983777629,1.697848,660.88,660.32,1.69870235]
[1751983778124,1.697848,660.88,660.31,1.69870235]
[1751983778829,1.697848,660.93,660.29,1.5]
[1751983779029,1.697848,660.94,660.29,1.5]
[1751983779430,1.697848,660.98,660.29,3.19870235]
[1751983779726,1.697848,661.01,660.32,1.69870235]
[1751983780331,1.697848,661.01,660.31,1.69870235]
[1751983781328,1.697848,661.02,660.31,1.69870235]
[1751983781526,2.26254195,661.22,660.31,1.69870235]
[1751983781527,1.697848,661.01,660.31,1.69870235]
[1751983781826,1.697848,661.04,660.34,1.69870235]
[1751983782227,1.697848,661.05,660.34,1.69870235]
[1751983782430,1.697848,661.05,660.35,1.69870235]
[1751983783132,1.697848,661.06,660.35,1.69870235]
[1751983783327,1.697848,661.06,660.34,1.69870235]
[1751983784133,1.697848,661.06,660.33,1.69870235]
[1751983785028,1.69794139,661.06,660.33,1.69875954]
[1751983785227,1.69794139,661.06,660.32,1.69875954]
[1751983785934,1.69794139,661.06,660.33,1.588]
[1751983786333,1.69794139,661.07,660.33,1.588]
[1751983788036,1.69794139,661.01,660.41,1.69875954]
[1751983788230,1.69794139,661.01,660.4,1.69875954]
[1751983788929,1.69794139,661.01,660.41,1.69875954]
[1751983789135,1.69794139,661.0,660.41,1.69875954]
[1751983789832,1.69794139,661.0,660.33,1.588]
[1751983789833,1.69794139,661.0,660.4,1.69875954]
[1751983790135,1.69794139,660.99,660.4,1.69875954]
[1751983791437,1.69794139,661.0,660.4,1.69875954]
[1751983791937,1.69794139,660.99,660.4,1.69875954]
[1751983792136,1.69794139,661.0,660.4,1.69875954]
[1751983792536,1.69794139,660.99,660.4,1.69875954]
[1751983792734,1.69794139,661.0,660.4,1.69875954]
[1751983793234,1.69794139,661.0,660.33,1.588]
[1751983793235,1.69794139,661.0,660.39,1.69875954]
[1751983795237,1.69794139,661.01,660.39,1.69875954]
[1751983795440,1.69794139,661.0,660.39,1.69875954]
[1751983795843,1.69794139,660.99,660.42,1.69875954]
[1751983796337,1.69794139,660.99,660.43,1.69875954]
[1751983797142,1.69794139,660.99,660.42,1.69875954]
[1751983797442,1.69794139,660.99,660.43,1.69875954]
[1751983801150,1.69794139,660.98,660.44,1.69875954]
[1751983803051,1.69794139,660.97,660.45,1.69875954]
[1751983804357,1.69794139,660.99,660.44,1.69875954]
[1751983804955,1.69794139,660.99,660.43,1.69875954]
[1751983805254,1.69794139,660.99,660.44,1.69875954]
[1751983805453,1.69794139,660.99,660.43,1.69875954]
[1751983805956,1.69794139,661.0,660.41,1.69875954]
[1751983807356,1.69794139,661.0,660.42,1.69875954]
[1751983807853,1.69794139,661.01,660.43,1.69875954]
[1751983810258,1.69794139,661.01,660.33,1.588]
[1751983810259,1.69794139,661.02,660.42,1.69875954]
[1751983810762,1.69794139,661.01,660.41,1.69875954]
[1751983813166,1.69794139,661.01,660.42,1.69875954]
[1751983814167,0.26335904,661.03,660.34,1.69875954]
[1751983814664,1.69794139,661.0,660.33,1.588]
[1751983816870,1.96130043,661.03,660.33,1.588]
[1751983817268,0.26335904,661.03,660.44,1.69875954]
[1751983819071,1.96130043,661.03,660.45,1.69875954]
[1751983820174,0.26335904,661.03,660.45,1.69875954]
[1751983820370,0.26335904,661.03,660.37,1.69875954]
[1751983820876,0.26335904,661.03,660.38,1.69875954]
[1751983821278,0.26335904,661.03,660.39,1.69875954]
[1751983821480,0.26335904,661.03,660.4,1.69875954]
[1751983821775,0.26335904,661.03,660.43,1.69875954]
[1751983823779,0.26335904,661.03,660.4,1.69875954]
[1751983824378,0.26335904,661.03,660.36,1.69875954]
[1751983825274,0.26335904,661.03,660.37,1.69875954]
[1751983825880,0.26335904,661.03,660.36,1.69875954]
[1751983827081,1.69794139,661.0,660.45,1.69875954]
[1751983827386,1.69794139,660.98,660.43,1.69875954]
[1751983829179,1.69794139,660.98,660.44,1.69875954]
[1751983831286,1.69794139,660.97,660.44,1.69875954]
[1751983831588,1.69794139,660.98,660.44,1.69875954]
[1751983832085,1.69794139,660.99,660.42,1.69875954]
[1751983832280,1.69794139,660.98,660.42,1.69875954]
[1751983833288,1.69794139,660.98,660.43,1.69875954]
[1751983835289,1.69794139,660.97,660.43,1.69875954]
[1751983835787,1.69794139,660.97,660.44,1.69875954]
[1751983836186,1.69794139,660.96,660.45,1.69875954]
[1751983838191,1.69794139,660.95,660.46,1.69875954]
[1751983839192,1.69794139,660.95,660.47,1.69875954]
[1751983841600,1.69794139,660.94,660.47,1.69875954]
[1751983841893,1.69794139,660.93,660.49,1.69875954]
[1751983842798,1.69794139,660.94,660.5,1.69875954]
[1751983843398,1.69794139,660.94,660.49,1.69875954]
[1751983844994,1.69794139,660.95,660.5,1.69875954]
[1751983845404,1.69794139,661.0,660.54,1.69875954]
[1751983845894,1.69794139,660.99,660.56,1.69875954]
[1751983846294,1.69794139,660.98,660.56,1.69875954]
[1751983846794,1.69794139,660.99,660.56,1.69875954]
[1751983847194,1.69794139,660.99,660.57,1.69875954]
[1751983847398,1.69794139,660.99,660.57,3.53375954]
[1751983847696,1.69794139,660.99,660.57,1.835]
[1751983848297,1.69794139,661.0,660.57,1.835]
[1751983849001,0.26335904,661.03,660.57,1.835]
[1751983849002,1.69794139,660.99,660.57,1.835]
[1751983849203,1.69794139,660.99,660.57,3.53375954]
[1751983850396,1.69794139,660.99,660.57,1.835]
[1751983850598,1.69794139,660.99,660.57,3.53375954]
[1751983850797,1.69794139,660.98,660.57,3.53375954]
[1751983850997,0.26335904,661.03,660.57,3.53375954]
[1751983850998,1.69794139,661.0,660.57,1.835]
[1751983851802,0.26335904,661.03,660.57,1.835]
[1751983853606,1.96130043,661.03,660.57,1.835]
[1751983853906,1.69794139,661.01,660.57,1.835]
[1751983855705,1.69794139,661.02,660.57,1.835]
[1751983861711,1.69794139,660.99,660.57,1.835]
[1751983864510,1.69794139,660.98,660.57,1.835]
[1751983864712,1.69794139,660.96,660.57,1.835]
[1751983865012,1.69794139,660.89,660.57,1.835]
[1751983865610,1.69794139,660.88,660.57,1.835]
[1751983866112,1.69794139,660.9,660.57,1.835]
[1751983866916,1.69794139,660.89,660.57,1.835]
[1751983869212,1.69794139,660.88,660.57,1.835]
[1751983870119,1.69794139,660.85,660.57,1.835]
[1751983870415,1.69794139,660.86,660.57,1.835]
[1751983871020,1.69794139,660.87,660.57,1.835]
[1751983873320,1.69794139,660.88,660.57,1.835]
[1751983873919,1.69794139,660.87,660.57,1.835]
[1751983874318,1.69794139,660.88,660.57,1.835]
[1751983874522,1.69794139,660.89,660.57,1.835]
[1751983875821,1.69794139,660.88,660.57,1.835]
[1751983876027,1.69794139,660.84,660.57,1.835]
[1751983876226,1.69794139,660.85,660.57,1.835]
[1751983876525,1.69794139,660.81,660.57,1.835]
[1751983877526,1.69794139,660.82,660.57,1.835]
[1751983878125,1.69794139,660.83,660.57,1.835]
[1751983878826,1.69794139,660.81,660.57,1.835]
[1751983879326,1.69794139,660.82,660.57,1.835]
[1751983879729,0.98935802,660.81,660.57,1.835]
[1751983879927,0.98935802,660.8,660.57,1.835]
[1751983880225,0.98935802,660.79,660.57,1.835]
[1751983880426,0.98935802,660.78,660.57,1.835]
[1751983880629,0.98935802,660.77,660.57,1.835]
[1751983880827,0.98935802,660.76,660.57,1.835]
[1751983881126,0.98935802,660.75,660.57,1.835]
[1751983881326,0.98935802,660.83,660.57,1.835]
[1751983881526,0.98935802,660.82,660.57,1.835]
[1751983881730,0.98935802,660.81,660.57,1.835]
[1751983882030,0.98935802,660.8,660.57,1.835]
[1751983882231,0.98935802,660.79,660.57,1.835]
[1751983882530,0.98935802,660.78,660.57,1.835]
[1751983882727,0.98935802,660.77,660.57,1.835]
[1751983882931,0.98935802,660.76,660.57,1.835]
[1751983883132,0.98935802,660.78,660.57,1.835]
[1751983883329,0.98935802,660.77,660.57,1.835]
[1751983883533,0.98935802,660.76,660.57,1.835]
[1751983883733,0.98935802,660.8,660.57,1.835]
[1751983883936,0.98935802,660.79,660.57,1.835]
[1751983884135,0.98935802,660.82,660.57,1.835]
[1751983884328,0.98935802,660.81,660.57,1.835]
[1751983884628,0.98935802,660.8,660.57,1.835]
[1751983884830,0.98935802,660.79,660.57,1.835]
[1751983885032,0.98935802,660.78,660.57,1.835]
[1751983885234,0.98935802,660.77,660.57,1.835]
[1751983885433,0.98935802,660.76,660.57,1.835]
[1751983885629,0.98935802,660.75,660.57,1.835]
[1751983885934,0.98935802,660.74,660.57,1.835]
[1751983886130,0.98935802,660.73,660.57,1.835]
[1751983886433,0.98935802,660.72,660.57,1.835]
[1751983886630,0.98935802,660.71,660.57,1.835]
[1751983886833,0.98935802,660.7,660.57,1.835]
[1751983887035,0.98935802,660.69,660.57,1.835]
[1751983887234,0.98935802,660.68,660.57,1.835]
[1751983887433,0.98935802,660.67,660.57,1.835]
[1751983887730,0.98935802,660.66,660.57,1.835]
[1751983887933,0.98935802,660.65,660.57,1.835]
[1751983888135,0.98935802,660.64,660.57,1.835]
[1751983888436,0.98935802,660.63,660.57,1.835]
[1751983888735,0.98935802,660.62,660.57,1.835]
[1751983888932,0.98935802,660.61,660.57,1.835]
[1751983889132,0.98935802,660.6,660.57,1.835]
[1751983889332,0.98935802,660.59,660.57,1.835]
[1751983889531,0.98935802,660.58,660.57,1.835]
[1751983891338,0.98935802,660.65,660.57,1.835]
[1751983891536,1.69466764,660.58,660.57,1.835]
[1751983891831,0.98935802,660.63,660.57,1.835]
[1751983892031,0.98935802,660.62,660.57,1.835]
[1751983892235,0.26335904,661.03,660.57,1.835]
[1751983892236,1.68809174,660.6,660.57,1.835]
[1751983892436,1.68809174,660.6,659.59,1.69722536]
[1751983893133,1.68809174,660.62,659.57,1.69722536]
[1751983894136,1.68809174,660.66,659.54,1.69722536]
[1751983894336,1.68809174,660.66,659.53,1.69722536]
[1751983895236,1.68809174,660.68,659.52,1.69722536]
[1751983895535,1.68809174,660.68,659.54,1.451]
[1751983895941,1.68809174,660.64,659.54,1.451]
[1751983896138,1.68809174,660.66,659.54,1.451]
[1751983896336,1.68809174,660.65,659.54,1.451]
[1751983896537,1.68809174,660.48,659.54,1.451]
[1751983896736,1.68809174,660.52,659.54,1.451]
[1751983897134,1.68809174,660.55,659.54,1.451]
[1751983898138,1.68809174,660.58,659.54,1.451]
[1751983898540,1.68809174,660.52,659.54,1.451]
[1751983898740,1.68809174,660.5,659.54,1.451]
[1751983899138,1.68809174,660.53,659.54,1.451]
[1751983899742,1.68809174,660.54,659.54,1.451]
[1751983900041,2.26254195,660.72,659.54,1.451]
[1751983900042,1.68809174,660.56,659.54,1.451]
[1751983900237,1.68809174,660.58,659.54,1.451]
[1751983901143,1.68809174,660.61,659.54,1.451]
[1751983902143,1.68809174,660.62,659.54,1.451]
[1751983902340,1.68809174,660.63,659.54,1.451]
[1751983902539,1.68809174,660.6,659.54,1.451]
[1751983903241,1.68809174,660.61,659.54,1.451]
[1751983904247,1.68809174,660.62,659.54,1.451]
[1751983904447,1.68809174,660.63,659.54,1.451]
[1751983905243,0.97376877,660.78,659.54,1.451]
[1751983905244,1.68809174,660.64,659.54,1.451]
[1751983906148,1.68809174,660.65,659.54,1.451]
[1751983906750,1.68809174,660.67,659.54,1.451]
[1751983907049,1.68809174,660.72,659.54,1.451]
[1751983908248,1.68809174,660.73,659.54,1.451]
[1751983908446,1.68809174,660.72,659.54,1.451]
[1751983908649,1.68809174,660.7,659.54,1.451]
[1751983909450,1.68809174,660.71,659.54,1.451]
[1751983909849,1.68809174,660.68,659.54,1.451]
[1751983910049,1.68809174,660.67,659.54,1.451]
[1751983911350,1.68809174,660.68,659.54,1.451]
[1751983911546,1.68809174,660.69,659.54,1.451]
[1751983912147,1.68809174,660.7,659.54,1.451]
[1751983912346,1.68809174,660.69,659.54,1.451]
[1751983913752,1.68809174,660.68,659.54,1.451]
[1751983913952,1.68809174,660.69,659.54,1.451]
[1751983914553,1.68809174,660.72,659.54,1.451]
[1751983915750,1.68809174,660.71,659.54,1.451]
[1751983915952,1.68809174,660.75,659.54,1.451]
[1751983917256,1.68809174,660.74,659.54,1.451]
[1751983917556,1.68809174,660.83,659.54,1.451]
[1751983918152,1.68809174,660.96,659.54,1.451]
[1751983919054,0.97341233,660.95,659.54,1.451]
[1751983919254,0.97341233,660.94,659.54,3.14822536]
[1751983919450,0.97341233,660.93,659.54,3.14822536]
[1751983919650,1.68809174,660.95,659.54,3.14822536]
[1751983919651,0.97341233,660.94,659.54,3.14822536]
[1751983919952,1.68809174,660.95,659.54,3.14822536]
[1751983920151,0.26335904,661.03,659.58,1.69722536]
[1751983920152,1.68809174,660.99,659.58,1.69722536]
[1751983920353,0.97341233,660.98,659.57,1.69722536]
[1751983920557,0.97341233,660.97,659.57,1.69722536]
[1751983920757,0.97341233,660.96,659.57,1.69722536]
[1751983920957,0.97341233,660.98,659.57,1.69722536]
[1751983921154,0.97341233,660.97,659.58,1.69722536]
[1751983921354,0.97341233,660.96,659.57,1.69722536]
[1751983921559,0.97341233,660.95,659.57,1.69722536]
[1751983921758,0.97341233,660.94,659.58,1.69722536]
[1751983921955,0.97341233,660.93,659.54,3.14822536]
[1751983922259,0.97341233,660.92,659.55,1.69722536]
[1751983922458,0.97341233,660.91,659.55,1.69722536]
[1751983922657,0.97341233,660.9,659.55,1.69722536]
[1751983922858,0.97341233,660.89,659.55,1.69722536]
[1751983923059,0.97575621,660.88,659.55,1.69722536]
[1751983923259,0.97575621,660.87,659.55,1.69722536]
[1751983923460,0.97575621,660.86,659.56,1.69722536]
[1751983923663,2.6643763,660.94,659.55,1.69722536]
[1751983923957,0.97628456,660.93,659.55,1.69722536]
[1751983924164,0.97628456,660.92,659.56,1.69722536]
[1751983924362,0.97628456,660.91,659.56,1.69722536]
[1751983924662,0.97628456,660.9,659.57,1.69722536]
[1751983924860,0.97628456,660.89,659.58,1.69722536]
[1751983925065,0.97628456,660.88,659.58,1.69722536]
[1751983925264,0.97628456,660.87,659.59,1.69722536]
[1751983925465,0.97628456,660.86,659.6,1.69722536]
[1751983925765,0.97628456,660.85,659.6,1.69722536]
[1751983926066,0.97628456,660.94,659.59,1.69722536]
[1751983926261,0.97628456,660.93,659.59,1.69722536]
[1751983926561,0.97628456,660.92,659.59,1.69722536]
[1751983926865,0.97628456,660.91,659.59,1.69722536]
[1751983927065,0.97628456,660.9,659.59,1.69722536]
[1751983927361,0.97628456,660.89,659.62,1.69722536]
[1751983927561,0.97628456,660.88,659.62,1.69722536]
[1751983927762,0.97628456,660.87,659.62,1.69722536]
[1751983927961,0.97628456,660.86,659.62,1.69722536]
[1751983928160,0.97628456,660.86,659.54,1.451]
[1751983928161,0.97628456,660.85,659.63,1.69722536]
[1751983928361,0.26335904,661.03,659.63,1.69722536]
[1751983928362,0.97628456,660.84,659.63,1.69722536]
[1751983928564,0.97628456,660.83,659.63,1.69722536]
[1751983928764,0.97628456,660.94,659.63,1.69722536]
[1751983928963,0.97628456,660.93,659.63,1.69722536]
[1751983929268,0.97628456,660.92,659.63,1.69722536]
[1751983929464,0.97885031,660.91,659.63,1.69722536]
[1751983929668,0.97885031,660.9,659.63,1.69722536]
[1751983929868,0.97885031,660.89,659.63,1.69722536]
[1751983930068,0.97885031,660.88,659.63,1.69722536]
[1751983930265,0.97885031,660.87,659.64,1.69722536]
[1751983930470,0.97885031,660.86,659.64,1.69722536]
[1751983930668,0.97885031,660.85,659.64,1.69722536]
[1751983930967,0.97885031,660.93,659.64,1.69722536]
[1751983931168,2.66694205,660.92,659.67,1.69722536]
[1751983931368,0.97885031,660.91,659.67,1.69722536]
[1751983931667,0.97885031,660.9,659.67,1.69722536]
[1751983931871,0.97885031,660.89,659.67,1.69722536]
[1751983932163,0.97885031,660.88,659.69,1.69722536]
[1751983932368,0.97885031,660.87,659.69,1.69722536]
[1751983932668,0.97885031,660.86,659.72,1.69722536]
[1751983932870,1.68809174,660.91,659.72,1.69722536]
[1751983933164,1.68809174,660.9,659.72,1.69722536]
[1751983933369,0.26335904,661.03,659.84,1.69722536]
[1751983933370,1.68809174,660.99,659.84,1.69722536]
[1751983933764,1.68809174,661.0,659.85,1.619]
[1751983933969,0.26335904,661.03,659.89,1.69722536]
[1751983934166,0.26335904,661.03,659.9,1.69722536]
[1751983934970,1.24220935,661.03,659.9,1.69722536]
[1751983935170,0.26335904,661.03,659.9,1.69722536]
[1751983935371,0.98088668,661.02,659.91,1.69722536]
[1751983935571,0.26335904,661.03,659.92,1.69722536]
[1751983936169,0.26335904,661.03,659.93,1.69722536]
[1751983936371,0.26335904,661.03,659.94,1.69722536]
[1751983937372,0.26335904,661.03,659.89,1.69722536]
[1751983938879,0.26335904,661.03,659.9,1.69722536]
[1751983939577,0.26335904,661.03,659.89,1.69722536]
[1751983940176,0.26335904,661.03,659.9,1.69722536]
[1751983940877,0.26335904,661.03,659.89,1.69722536]
[1751983941180,0.26335904,661.03,659.9,1.69722536]
[1751983941476,0.26335904,661.03,659.89,1.69722536]
[1751983942180,0.26335904,661.03,659.9,1.69722536]
[1751983943677,0.26335904,661.03,659.91,1.69722536]
[1751983946678,0.26335904,661.03,659.9,1.69722536]
[1751983947179,1.68809174,661.01,659.96,1.69722536]
[1751983947379,2.66897842,661.01,659.96,1.69722536]
[1751983947582,1.68809174,661.01,659.96,1.69722536]
[1751983947779,2.66897842,661.01,659.96,1.69722536]
[1751983948082,2.66897842,661.0,659.98,1.69722536]
[1751983948283,0.98088668,660.99,659.98,1.69722536]
[1751983948484,0.98088668,660.98,659.98,1.69722536]
[1751983948678,0.98088668,660.99,659.98,1.69722536]
[1751983948978,0.98088668,660.98,659.98,1.69722536]
[1751983949182,0.98088668,660.99,659.98,1.69722536]
[1751983949377,0.98088668,660.98,659.98,1.69722536]
[1751983949582,0.98088668,660.97,659.99,1.69722536]
[1751983949782,0.98088668,660.98,659.99,1.69722536]
[1751983949982,0.98088668,660.97,659.99,1.69722536]
[1751983950181,0.98088668,660.98,659.99,1.69722536]
[1751983950382,0.98088668,660.97,659.99,1.69722536]
[1751983950683,0.98088668,660.99,659.99,1.69722536]
[1751983950979,0.98088668,660.99,659.85,1.619]
[1751983950980,0.98088668,660.99,659.96,1.69722536]
[1751983951179,0.98088668,661.0,659.92,1.69722536]
[1751983951383,1.68809174,660.98,659.92,1.69722536]
[1751983951680,0.98088668,660.97,659.92,1.69722536]
[1751983951883,0.98088668,660.96,659.93,1.69722536]
[1751983952083,0.98088668,660.95,659.92,1.69722536]
[1751983952279,0.98088668,660.96,659.91,1.69722536]
[1751983952479,0.98088668,660.95,659.91,1.69722536]
[1751983952684,0.98088668,660.94,659.91,1.69722536]
[1751983952886,0.98088668,660.93,659.91,1.69722536]
[1751983953185,0.98088668,660.92,659.91,1.69722536]
[1751983953383,0.98088668,660.97,659.91,1.69722536]
[1751983953687,0.98088668,660.96,659.91,1.68586863]
[1751983953988,0.98088668,660.95,659.91,1.68586863]
[1751983954183,0.98088668,660.94,659.91,1.68586863]
[1751983954386,0.98088668,660.93,659.91,1.68586863]
[1751983954582,0.98088668,660.92,659.91,1.68586863]
[1751983954885,0.98088668,660.97,659.91,1.68586863]
[1751983955083,0.9797662,660.96,659.91,1.68586863]
[1751983955287,0.9797662,660.95,659.9,1.68586863]
[1751983955488,0.9797662,660.94,659.9,1.68586863]
[1751983955788,1.68343968,660.97,659.85,1.619]
[1751983955986,0.9797662,660.96,659.85,1.619]
[1751983956186,0.9797662,660.95,659.85,1.619]
[1751983956488,0.9797662,660.94,659.85,1.619]
[1751983956688,0.9797662,660.93,659.85,1.619]
[1751983956888,0.9797662,660.92,659.85,1.619]
[1751983957089,0.9797662,660.91,659.85,1.619]
[1751983957297,0.9797662,660.95,659.85,1.619]
[1751983957493,0.9797662,660.94,659.85,3.30486863]
[1751983957689,0.9797662,660.93,659.85,3.30486863]
[1751983957892,0.9797662,660.92,659.85,3.30486863]
[1751983958095,0.9797662,660.91,659.85,3.30486863]
[1751983958293,0.9797662,660.9,659.85,3.30486863]
[1751983958492,0.9797662,660.89,659.85,3.30486863]
[1751983958695,0.9797662,660.88,659.86,1.68586863]
[1751983958889,1.68343968,660.94,659.86,1.68586863]
[1751983958890,0.9797662,660.87,659.86,1.68586863]
[1751983959095,0.9797662,660.86,659.86,1.68586863]
[1751983959293,0.9797662,660.85,659.86,1.68586863]
[1751983959492,0.9797662,660.84,659.91,1.68586863]
[1751983959692,0.9797662,660.83,659.91,1.68586863]
[1751983959992,0.9797662,660.82,659.91,1.68586863]
[1751983960197,2.66320588,660.89,659.9,1.68586863]
[1751983960392,0.9797662,660.88,659.9,1.68586863]
[1751983960592,0.9797662,660.87,659.9,1.68586863]
[1751983960794,0.9797662,660.86,659.9,1.68586863]
[1751983960994,0.26335904,661.03,659.85,1.619]
[1751983960995,0.9797662,660.85,659.87,1.68586863]
[1751983961198,0.9797662,660.84,659.87,1.68586863]
[1751983961498,0.9797662,660.89,659.87,1.68586863]
[1751983961696,0.9797662,660.88,659.87,1.68586863]
[1751983961898,0.9797662,660.87,659.87,1.68586863]
[1751983962100,0.9797662,660.86,659.87,1.68586863]
[1751983962300,0.9797662,660.85,659.85,1.619]
[1751983962997,0.9797662,660.85,659.84,1.68586863]
[1751983963302,0.9797662,660.85,659.8,1.68586863]
[1751983963303,1.68343968,660.8,659.8,1.68586863]
[1751983964201,1.68343968,660.8,659.81,1.68586863]
[1751983964502,1.68343968,660.78,659.8,1.68586863]
[1751983965202,1.68343968,660.78,659.81,1.35]
[1751983965398,1.68343968,660.77,659.81,1.35]
[1751983966101,1.68343968,660.78,659.81,1.35]
[1751983966311,1.68343968,660.77,659.81,1.35]
[1751983966498,1.68343968,660.76,659.81,3.03586863]
[1751983967204,1.68343968,660.74,659.84,1.68586863]
[1751983967902,1.68343968,660.73,659.84,1.68586863]
[1751983968604,1.68343968,660.73,659.85,1.68586863]
[1751983969404,1.68343968,660.71,659.85,1.68586863]
[1751983970101,1.68343968,660.64,659.81,1.35]
[1751983970305,1.68343968,660.62,659.81,1.35]
[1751983970500,1.68343968,660.64,659.81,1.35]
[1751983971202,1.68343968,660.63,659.81,1.35]
[1751983972102,1.68343968,660.62,659.81,1.35]
[1751983972305,1.68343968,660.64,659.81,1.35]
[1751983973205,1.68343968,660.63,659.81,1.35]
[1751983974206,1.68343968,660.61,659.81,3.03586863]
[1751983975108,1.68343968,660.6,659.82,1.68586863]
[1751983975406,1.68343968,660.6,659.81,3.03586863]
[1751983975908,1.68343968,660.61,659.81,1.35]
[1751983976206,1.68343968,660.6,659.81,3.03586863]
[1751983977109,1.68343968,660.61,659.81,1.35]
[1751983977310,1.68343968,660.64,659.85,1.68586863]
[1751983978006,1.69275367,660.64,659.85,1.69560544]
[1751983978308,1.69275367,660.64,659.86,1.69560544]
[1751983978604,1.69275367,660.62,659.88,1.69560544]
[1751983979512,1.69275367,660.64,659.85,1.69560544]
[1751983979711,1.69275367,660.63,659.86,1.69560544]
[1751983980010,1.69275367,660.59,659.84,1.69560544]
[1751983981808,1.69275367,660.56,659.84,1.69560544]
[1751983982111,1.69275367,660.56,659.85,1.69560544]
[1751983982311,1.69275367,660.56,659.84,1.69560544]
[1751983983109,1.69275367,660.56,659.85,1.69560544]
[1751983983412,1.69275367,660.53,659.82,1.69560544]
[1751983985313,1.69275367,660.54,659.82,1.69560544]
[1751983985917,1.69275367,660.5,659.87,1.69560544]
[1751983986120,1.69275367,660.53,659.83,1.69560544]
[1751983987319,1.69275367,660.54,659.82,1.69560544]
[1751983987716,1.69275367,660.54,659.83,1.69560544]
[1751983987917,1.69275367,660.54,659.82,1.69560544]
[1751983989520,1.69275367,660.55,659.82,1.69560544]
[1751983991720,1.69275367,660.56,659.81,3.04560544]
[1751983993420,1.69275367,660.55,659.84,1.69560544]
[1751983993622,1.69275367,660.54,659.84,1.69560544]
[1751983995924,1.69275367,660.51,659.81,3.04560544]
[1751983996522,1.69275367,660.5,659.81,3.04560544]
[1751983998322,1.69275367,660.5,659.81,1.35]
[1751983998626,1.69275367,660.49,659.83,1.69560544]
[1751983998925,1.69275367,660.53,659.81,1.35]
[1751983999328,1.69275367,660.52,659.81,1.35]
[1751984003432,1.69275367,660.51,659.81,1.35]
[1751984005430,1.69275367,660.56,659.81,1.35]
[1751984005929,1.69275367,660.55,659.81,1.35]
[1751984007331,1.69275367,660.54,659.81,1.35]
[1751984008438,1.69275367,660.53,659.81,1.35]
[1751984010432,1.69275367,660.52,659.81,1.35]
[1751984011638,1.69275367,660.51,659.81,1.35]
[1751984011935,1.69275367,660.46,659.81,1.35]
[1751984013438,1.69275367,660.45,659.81,1.35]
[1751984013638,1.69275367,660.46,659.81,1.35]
[1751984013939,0.26359742,660.41,659.81,1.35]
[1751984014337,1.69275367,660.39,659.81,1.35]
[1751984014539,1.69275367,660.4,659.81,1.35]
[1751984015538,1.69275367,660.39,659.81,1.35]
[1751984016639,1.69275367,660.41,659.81,1.35]
[1751984016844,1.69275367,660.46,659.81,1.35]
[1751984017440,0.26358944,660.48,659.81,3.04560544]
[1751984017844,0.26358944,660.48,659.82,1.69560544]
[1751984018144,1.69275367,660.51,659.82,1.69560544]
[1751984018440,1.69275367,660.56,659.9,1.69560544]
[1751984019040,1.95631216,660.58,659.87,1.69560544]
[1751984019445,1.69275367,660.57,659.88,1.69560544]
[1751984019941,1.69275367,660.57,659.87,1.69560544]
[1751984020445,1.69275367,660.57,659.88,1.69560544]
[1751984021241,1.69275367,660.57,659.87,1.69560544]
[1751984021445,1.69275367,660.57,659.88,1.69560544]
[1751984022246,1.69275367,660.57,659.89,1.948]